[Event "European Online Club-ch-D 2021"]
[Site "Online"]
[Date "2021.03.27"]
[Round "1.19"]
[White "Babazada, Khazar"]
[Black "Kusa, Jakub"]
[Result "1/2-1/2"]
[ECO "C48"]
[WhiteElo "2409"]
[BlackElo "2336"]
[Annotator "NA"]
[PlyCount "137"]
[EventDate "2021.03.27"]
[EventType "team-tourn"]
[EventCountry "NET"]
[SourceTitle "playchess.com"]
[Source "ChessBase"]
[SourceQuality "1"]
[TimeControl "900+5"]

1. e4 {[%emt 0:00:00]} e5 {[%emt 0:00:44]} 2. Nc3 {[%emt 0:00:26]} Nf6 {[%emt 0:00:10]} 3. Nf3 {[%emt 0:01:28]} Nc6 {[%emt 0:00:04]} 4. Bb5 {[%emt 0:00:19]} Bd6 {[%emt 0:00:09]} 5. O-O {[%emt 0:00:14]} O-O {[%emt 0:00:32]} 6. h3 {[%emt 0:00:57]} a6 {[%emt 0:00:12]} 7. Bxc6 {[%emt 0:01:37]} dxc6 {[%emt 0:00:05]} 8. d4 {[%emt 0:00:43]} exd4 {[%emt 0:01:06]} 9. Qxd4 {[%emt 0:00:05]} Be7 {[%emt 0:00:38]} 10. Qxd8 {[%emt 0:01:53]} Rxd8 {[%emt 0:00:09]} 11. Bf4 {[%emt 0:00:04]} Ne8 {[%emt 0:02:39]} 12. Rad1 {[%emt 0:00:21]} Be6 {[%emt 0:00:30]} 13. a3 {[%emt 0:00:06]} Nd6 {[%emt 0:02:25]} 14. Nd4 {[%emt 0:02:11]} Bc4 {[%emt 0:00:57]} 15. Rfe1 {[%emt 0:00:09]} c5 {[%emt 0:01:36]} 16. Nf3 {[%emt 0:01:06]} Be6 {[%emt 0:00:34]} 17. Nd5 {[%emt 0:00:10]} Bxd5 {[%emt 0:00:32]} 18. Rxd5 {[%emt 0:00:02]} b6 {[%emt 0:00:45]} 19. Ne5 {[%emt 0:01:37]} Re8 {[%emt 0:01:51]} 20. f3 {[%emt 0:01:19]} Bf6 {[%emt 0:00:33]} 21. c3 {[%emt 0:00:29]} Bxe5 {[%emt 0:00:23]} 22. Bxe5 {[%emt 0:00:03]} Nc4 {[%emt 0:00:02]} 23. Bxc7 {[%emt 0:00:02]} Rac8 {[%emt 0:00:02]} 24. b3 {[%emt 0:00:30]} Na5 {[%emt 0:00:16]} 25. Bxb6 {[%emt 0:00:50]} Nxb3 {[%emt 0:00:01]} 26. a4 {[%emt 0:00:02]} a5 {[%emt 0:00:03]} 27. Red1 {[%emt 0:00:13]} c4 {[%emt 0:00:03]} 28. Rd8 {[%emt 0:00:15]} Rexd8 {[%emt 0:00:01]} 29. Rxd8+ {[%emt 0:00:01]} Rxd8 {[%emt 0:00:01]} 30. Bxd8 {[%emt 0:00:01]} Kf8 {[%emt 0:00:02]} 31. Kf2 {[%emt 0:00:03]} Ke8 {[%emt 0:00:01]} 32. Bb6 {[%emt 0:00:06]} Kd7 {[%emt 0:00:01]} 33. Be3 {[%emt 0:00:10]} Na1 {[%emt 0:00:18]} 34. Ke2 {[%emt 0:00:04]} Kc6 {[%emt 0:00:04]} 35. Kd2 {[%emt 0:00:06]} Nb3+ {[%emt 0:00:03]} 36. Kc2 {[%emt 0:00:01]} Na1+ {[%emt 0:00:03]} 37. Kd2 {[%emt 0:00:05]} Nb3+ {[%emt 0:00:02]} 38. Kd1 {[%emt 0:00:01]} g6 {[%emt 0:00:12]} 39. g4 {[%emt 0:00:08]} Kd6 {[%emt 0:00:04]} 40. f4 {[%emt 0:00:14]} Ke6 {[%emt 0:00:04]} 41. Bd4 {[%emt 0:00:05]} Na1 {[%emt 0:00:15]} 42. f5+ {[%emt 0:00:03]} Kd6 {[%emt 0:00:03]} 43. h4 {[%emt 0:00:06]} Nb3 {[%emt 0:00:01]} 44. Ke2 {[%emt 0:00:09]} Nc1+ {[%emt 0:00:03]} 45. Ke3 {[%emt 0:00:01]} Nd3 {[%emt 0:00:05]} 46. Bb6 {[%emt 0:00:02]} Nb2 {[%emt 0:00:02]} 47. Bxa5 {[%emt 0:00:02]} Nxa4 {[%emt 0:00:01]} 48. Kd4 {[%emt 0:00:02]} Nb2 {[%emt 0:00:03]} 49. Bb4+ {[%emt 0:00:03]} Kd7 {[%emt 0:00:04]} 50. h5 {[%emt 0:00:17]} Nd3 {[%emt 0:00:05]} 51. fxg6 {[%emt 0:00:04]} fxg6 {[%emt 0:00:03]} 52. hxg6 {[%emt 0:00:01]} hxg6 {[%emt 0:00:01]} 53. g5 {[%emt 0:00:02]} Nf4 {[%emt 0:00:04]} 54. Ba3 {[%emt 0:00:05]} Ne6+ {[%emt 0:00:01]} 55. Kxc4 {[%emt 0:00:03]} Nxg5 {[%emt 0:00:02]} 56. Kd5 {[%emt 0:00:03]} Ne6 {[%emt 0:00:02]} 57. Bd6 {[%emt 0:00:16]} g5 {[%emt 0:00:05]} 58. Bg3 {[%emt 0:00:02]} g4 {[%emt 0:00:04]} 59. Ke5 {[%emt 0:00:03]} Nc5 {[%emt 0:00:02]} 60. Kf5 {[%emt 0:00:03]} Kc6 {[%emt 0:00:06]} 61. c4 {[%emt 0:00:11]} Nb3 {[%emt 0:00:05]} 62. e5 {[%emt 0:00:07]} Na5 {[%emt 0:00:03]} 63. e6 {[%emt 0:00:05]} Nxc4 {[%emt 0:00:03]} 64. Kf6 {[%emt 0:00:02]} Ne3 {[%emt 0:00:02]} 65. Kg5 {[%emt 0:00:08]} Nd5 {[%emt 0:00:06]} 66. Kxg4 {[%emt 0:00:02]} Kb7 {[%emt 0:00:12]} 67. Kf5 {[%emt 0:00:04]} Kc8 {[%emt 0:00:01]} 68. Bh4 {[%emt 0:00:01]} Nc7 {[%emt 0:00:04]} 69. Kf6 {[%emt 0:00:12]} 1/2-1/2

[Event "European Online Club-ch-D 2021"]
[Site "Online"]
[Date "2021.03.27"]
[Round "1.20"]
[White "Zeman, Matyas"]
[Black "Eynullayev, Atilla"]
[Result "1/2-1/2"]
[ECO "D02"]
[WhiteElo "2261"]
[BlackElo "2347"]
[Annotator "NA"]
[PlyCount "162"]
[EventDate "2021.03.27"]
[EventType "team-tourn"]
[EventCountry "NET"]
[SourceTitle "playchess.com"]
[Source "ChessBase"]
[SourceQuality "1"]
[TimeControl "900+5"]

1. d4 {[%emt 0:00:00]} d5 {[%emt 0:00:06]} 2. Nf3 {[%emt 0:00:06]} e6 {[%emt 0:00:13]} 3. Bf4 {[%emt 0:00:08]} Bd6 {[%emt 0:00:10]} 4. e3 {[%emt 0:00:07]} Bxf4 {[%emt 0:00:33]} 5. exf4 {[%emt 0:00:02]} b6 {[%emt 0:00:02]} 6. c3 {[%emt 0:00:10]} Nf6 {[%emt 0:00:37]} 7. Nbd2 {[%emt 0:00:02]} O-O {[%emt 0:00:04]} 8. Bd3 {[%emt 0:00:04]} Ba6 {[%emt 0:00:02]} 9. Bxa6 {[%emt 0:00:02]} Nxa6 {[%emt 0:00:01]} 10. O-O {[%emt 0:00:02]} c5 {[%emt 0:00:11]} 11. Qa4 {[%emt 0:00:12]} Nb8 {[%emt 0:00:33]} 12. Ne5 {[%emt 0:01:43]} Qc7 {[%emt 0:00:17]} 13. Rac1 {[%emt 0:00:38]} Rc8 {[%emt 0:00:48]} 14. Rfe1 {[%emt 0:04:06]} Nc6 {[%emt 0:01:34]} 15. Ndf3 {[%emt 0:00:54]} Ne4 {[%emt 0:01:24]} 16. Nxc6 {[%emt 0:00:03]} Qxc6 {[%emt 0:00:03]} 17. Qxc6 {[%emt 0:00:01]} Rxc6 {[%emt 0:00:01]} 18. Ne5 {[%emt 0:00:01]} Rc7 {[%emt 0:00:03]} 19. dxc5 {[%emt 0:00:02]} bxc5 {[%emt 0:00:24]} 20. c4 {[%emt 0:00:07]} h6 {[%emt 0:02:03]} 21. Rcd1 {[%emt 0:01:31]} Nf6 {[%emt 0:00:29]} 22. f5 {[%emt 0:00:38]} Rd8 {[%emt 0:01:05]} 23. fxe6 {[%emt 0:00:02]} fxe6 {[%emt 0:00:01]} 24. b3 {[%emt 0:00:43]} a5 {[%emt 0:00:27]} 25. f3 {[%emt 0:00:56]} Rd6 {[%emt 0:00:23]} 26. Rd3 {[%emt 0:00:38]} Ra6 {[%emt 0:00:12]} 27. cxd5 {[%emt 0:00:49]} exd5 {[%emt 0:00:16]} 28. Rc1 {[%emt 0:00:02]} a4 {[%emt 0:01:01]} 29. Rdc3 {[%emt 0:00:11]} axb3 {[%emt 0:00:15]} 30. axb3 {[%emt 0:00:00]} Rb6 {[%emt 0:03:41]} 31. Nd3 {[%emt 0:01:04]} Nd7 {[%emt 0:00:07]} 32. Nxc5 {[%emt 0:00:08]} Nxc5 {[%emt 0:00:06]} 33. Rxc5 {[%emt 0:00:00]} Rxc5 {[%emt 0:00:01]} 34. Rxc5 {[%emt 0:00:01]} Rxb3 {[%emt 0:00:01]} 35. Rxd5 {[%emt 0:00:01]} Rb2 {[%emt 0:00:01]} 36. h4 {[%emt 0:00:01]} Kh7 {[%emt 0:00:08]} 37. h5 {[%emt 0:00:01]} Kg8 {[%emt 0:00:10]} 38. Kh2 {[%emt 0:00:16]} Kf7 {[%emt 0:00:01]} 39. Rd6 {[%emt 0:00:07]} Rc2 {[%emt 0:00:17]} 40. Kh3 {[%emt 0:00:06]} Rc3 {[%emt 0:00:02]} 41. Ra6 {[%emt 0:00:05]} Rb3 {[%emt 0:00:02]} 42. Kg4 {[%emt 0:00:01]} Rb5 {[%emt 0:00:06]} 43. f4 {[%emt 0:00:07]} Rc5 {[%emt 0:00:05]} 44. g3 {[%emt 0:00:14]} Rb5 {[%emt 0:00:01]} 45. Rd6 {[%emt 0:00:05]} Ra5 {[%emt 0:00:02]} 46. Rd4 {[%emt 0:00:19]} Rb5 {[%emt 0:00:02]} 47. Re4 {[%emt 0:00:01]} Ra5 {[%emt 0:00:06]} 48. Re5 {[%emt 0:00:04]} Ra3 {[%emt 0:00:02]} 49. Kh4 {[%emt 0:00:13]} Ra1 {[%emt 0:00:05]} 50. g4 {[%emt 0:00:08]} Rh1+ {[%emt 0:00:02]} 51. Kg3 {[%emt 0:00:02]} Rg1+ {[%emt 0:00:02]} 52. Kf3 {[%emt 0:00:01]} Ra1 {[%emt 0:00:10]} 53. Rb5 {[%emt 0:00:30]} Ra4 {[%emt 0:00:05]} 54. Kg3 {[%emt 0:00:41]} Ra3+ {[%emt 0:00:03]} 55. Kh4 {[%emt 0:00:03]} Ra4 {[%emt 0:00:01]} 56. Rf5+ {[%emt 0:00:03]} Kg8 {[%emt 0:00:05]} 57. g5 {[%emt 0:00:18]} hxg5+ {[%emt 0:00:02]} 58. Kxg5 {[%emt 0:00:00]} Ra1 {[%emt 0:00:11]} 59. Rb5 {[%emt 0:00:07]} Rg1+ {[%emt 0:00:07]} 60. Kf5 {[%emt 0:00:01]} Ra1 {[%emt 0:00:05]} 61. Rb6 {[%emt 0:00:12]} Kh7 {[%emt 0:00:15]} 62. Rg6 {[%emt 0:00:31]} Ra5+ {[%emt 0:00:12]} 63. Kg4 {[%emt 0:00:01]} Ra1 {[%emt 0:00:01]} 64. Rg5 {[%emt 0:00:15]} Rg1+ {[%emt 0:00:15]} 65. Kf5 {[%emt 0:00:02]} Ra1 {[%emt 0:00:02]} 66. Kg4 {[%emt 0:00:29]} Rg1+ {[%emt 0:00:02]} 67. Kf3 {[%emt 0:00:01]} Rf1+ {[%emt 0:00:03]} 68. Ke3 {[%emt 0:00:09]} Re1+ {[%emt 0:00:01]} 69. Kf2 {[%emt 0:00:01]} Ra1 {[%emt 0:00:02]} 70. Rd5 {[%emt 0:00:05]} Ra2+ {[%emt 0:00:02]} 71. Kf3 {[%emt 0:00:02]} Ra3+ {[%emt 0:00:02]} 72. Kg4 {[%emt 0:00:02]} Ra1 {[%emt 0:00:03]} 73. Kf5 {[%emt 0:00:04]} Ra2 {[%emt 0:00:08]} 74. Ke6 {[%emt 0:00:03]} Ra6+ {[%emt 0:00:02]} 75. Ke5 {[%emt 0:00:16]} Ra1 {[%emt 0:00:06]} 76. Rd6 {[%emt 0:00:04]} Ra5+ {[%emt 0:00:03]} 77. Rd5 {[%emt 0:00:03]} Rxd5+ {[%emt 0:00:20]} 78. Kxd5 {[%emt 0:00:00]} Kh6 {[%emt 0:00:01]} 79. Ke6 {[%emt 0:00:01]} Kxh5 {[%emt 0:00:02]} 80. Kf7 {[%emt 0:00:02]} Kg4 {[%emt 0:00:01]} 81. Kxg7 {[%emt 0:00:04]} Kxf4 {[%emt 0:00:02]} 1/2-1/2

[Event "European Online Club-ch-D 2021"]
[Site "Online"]
[Date "2021.03.27"]
[Round "2.1"]
[White "Eren, Ataberk"]
[Black "Straka, Vojtech"]
[Result "1-0"]
[ECO "D02"]
[WhiteElo "2306"]
[BlackElo "2417"]
[Annotator "NA"]
[PlyCount "131"]
[EventDate "2021.03.27"]
[EventType "team-tourn"]
[EventCountry "NET"]
[SourceTitle "playchess.com"]
[Source "ChessBase"]
[SourceQuality "1"]
[TimeControl "900+5"]

1. d4 {[%emt 0:00:00]} d5 {[%emt 0:00:04]} 2. Bf4 {[%emt 0:00:03]} c5 {[%emt 0:00:07]} 3. e3 {[%emt 0:00:01]} Nc6 {[%emt 0:00:04]} 4. c3 {[%emt 0:00:03]} Bf5 {[%emt 0:00:03]} 5. Nd2 {[%emt 0:00:01]} e6 {[%emt 0:00:07]} 6. Ngf3 {[%emt 0:00:10]} Qb6 {[%emt 0:01:50]} 7. Qb3 {[%emt 0:00:26]} c4 {[%emt 0:02:36]} 8. Qxb6 {[%emt 0:00:03]} axb6 {[%emt 0:00:01]} 9. Nh4 {[%emt 0:00:02]} Nf6 {[%emt 0:00:50]} 10. Nxf5 {[%emt 0:02:16]} exf5 {[%emt 0:00:03]} 11. a3 {[%emt 0:01:05]} b5 {[%emt 0:00:17]} 12. Rc1 {[%emt 0:00:07]} Be7 {[%emt 0:01:38]} 13. Be2 {[%emt 0:00:05]} O-O {[%emt 0:00:02]} 14. O-O {[%emt 0:00:02]} Rfe8 {[%emt 0:00:09]} 15. h3 {[%emt 0:00:10]} g6 {[%emt 0:00:59]} 16. g4 {[%emt 0:01:21]} fxg4 {[%emt 0:00:48]} 17. hxg4 {[%emt 0:00:02]} Kg7 {[%emt 0:00:13]} 18. Bf3 {[%emt 0:00:11]} Rad8 {[%emt 0:00:25]} 19. Rfe1 {[%emt 0:00:17]} Bd6 {[%emt 0:00:47]} 20. Bg5 {[%emt 0:01:49]} Be7 {[%emt 0:01:12]} 21. Bf4 {[%emt 0:00:12]} Bd6 {[%emt 0:00:05]} 22. Rcd1 {[%emt 0:03:44]} h6 {[%emt 0:00:14]} 23. g5 {[%emt 0:00:19]} hxg5 {[%emt 0:00:03]} 24. Bxg5 {[%emt 0:00:02]} Be7 {[%emt 0:00:04]} 25. Bf4 {[%emt 0:01:11]} Bd6 {[%emt 0:00:32]} 26. Bg5 {[%emt 0:00:10]} Be7 {[%emt 0:00:02]} 27. Bxf6+ {[%emt 0:00:10]} Bxf6 {[%emt 0:00:03]} 28. e4 {[%emt 0:00:01]} Bg5 {[%emt 0:00:24]} 29. e5 {[%emt 0:01:40]} Ne7 {[%emt 0:00:02]} 30. Nf1 {[%emt 0:00:11]} Rh8 {[%emt 0:00:07]} 31. Ng3 {[%emt 0:00:12]} Rh4 {[%emt 0:00:13]} 32. Ra1 {[%emt 0:00:21]} Ra8 {[%emt 0:00:31]} 33. Bg2 {[%emt 0:00:10]} Kf8 {[%emt 0:01:03]} 34. Rf1 {[%emt 0:00:06]} Bf4 {[%emt 0:00:05]} 35. Rfe1 {[%emt 0:00:08]} Ke8 {[%emt 0:00:05]} 36. Ne2 {[%emt 0:00:05]} Bh2+ {[%emt 0:00:27]} 37. Kf1 {[%emt 0:00:02]} Kd7 {[%emt 0:00:02]} 38. Ng1 {[%emt 0:00:25]} Bf4 {[%emt 0:00:10]} 39. Nf3 {[%emt 0:00:05]} Rh6 {[%emt 0:00:18]} 40. Ke2 {[%emt 0:00:01]} g5 {[%emt 0:00:58]} 41. Rh1 {[%emt 0:00:08]} g4 {[%emt 0:00:02]} 42. Nd2 {[%emt 0:00:10]} Rah8 {[%emt 0:00:04]} 43. Rxh6 {[%emt 0:00:05]} Rxh6 {[%emt 0:00:02]} 44. Nf1 {[%emt 0:00:01]} Rh8 {[%emt 0:00:31]} 45. Ne3 {[%emt 0:00:22]} Rh2 {[%emt 0:00:09]} 46. Rg1 {[%emt 0:00:02]} Bxe3 {[%emt 0:00:07]} 47. Kxe3 {[%emt 0:00:02]} g3 {[%emt 0:00:10]} 48. fxg3 {[%emt 0:00:08]} Ke6 {[%emt 0:00:03]} 49. Kf3 {[%emt 0:00:12]} f6 {[%emt 0:00:03]} 50. exf6 {[%emt 0:00:09]} Kxf6 {[%emt 0:00:01]} 51. Re1 {[%emt 0:00:03]} Rh8 {[%emt 0:00:05]} 52. Re5 {[%emt 0:00:04]} Rd8 {[%emt 0:00:05]} 53. g4 {[%emt 0:00:03]} Ng6 {[%emt 0:00:06]} 54. Rf5+ {[%emt 0:00:14]} Ke6 {[%emt 0:00:01]} 55. Kg3 {[%emt 0:00:01]} Ne7 {[%emt 0:00:02]} 56. Re5+ {[%emt 0:00:01]} Kd6 {[%emt 0:00:06]} 57. g5 {[%emt 0:00:04]} Rf8 {[%emt 0:00:01]} 58. Bf3 {[%emt 0:00:05]} Ng6 {[%emt 0:00:08]} 59. Rxd5+ {[%emt 0:00:02]} Kc7 {[%emt 0:00:13]} 60. Rxb5 {[%emt 0:00:03]} b6 {[%emt 0:00:01]} 61. Rb4 {[%emt 0:00:06]} Nf4 {[%emt 0:00:09]} 62. Rxc4+ {[%emt 0:00:02]} Kd6 {[%emt 0:00:01]} 63. Rc6+ {[%emt 0:00:02]} Kd7 {[%emt 0:00:03]} 64. Rxb6 {[%emt 0:00:05]} Nd3 {[%emt 0:00:10]} 65. g6 {[%emt 0:00:08]} Ne1 {[%emt 0:00:06]} 66. Be4 {[%emt 0:00:06]} 1-0

[Event "European Online Club-ch-D 2021"]
[Site "Online"]
[Date "2021.03.27"]
[Round "2.2"]
[White "Roubalik, Jakub"]
[Black "Ozkan, Ervin"]
[Result "1-0"]
[ECO "D15"]
[WhiteElo "2391"]
[BlackElo "2147"]
[Annotator "NA"]
[PlyCount "71"]
[EventDate "2021.03.27"]
[EventType "team-tourn"]
[EventCountry "NET"]
[SourceTitle "playchess.com"]
[Source "ChessBase"]
[SourceQuality "1"]
[TimeControl "900+5"]

1. d4 {[%emt 0:00:00]} d5 {[%emt 0:00:09]} 2. c4 {[%emt 0:00:03]} c6 {[%emt 0:00:02]} 3. Nc3 {[%emt 0:00:04]} Nf6 {[%emt 0:00:02]} 4. e3 {[%emt 0:00:05]} a6 {[%emt 0:00:06]} 5. Nf3 {[%emt 0:00:17]} b5 {[%emt 0:00:08]} 6. b3 {[%emt 0:00:18]} Bg4 {[%emt 0:00:05]} 7. Be2 {[%emt 0:00:16]} e6 {[%emt 0:00:17]} 8. O-O {[%emt 0:00:04]} Nbd7 {[%emt 0:00:05]} 9. Bb2 {[%emt 0:01:31]} Bd6 {[%emt 0:00:12]} 10. h3 {[%emt 0:00:15]} Bh5 {[%emt 0:00:01]} 11. Rc1 {[%emt 0:00:58]} O-O {[%emt 0:00:25]} 12. Ne5 {[%emt 0:02:05]} Bxe2 {[%emt 0:00:05]} 13. Nxe2 {[%emt 0:00:03]} Rc8 {[%emt 0:00:42]} 14. c5 {[%emt 0:01:57]} Bb8 {[%emt 0:00:13]} 15. b4 {[%emt 0:00:11]} Qe7 {[%emt 0:03:11]} 16. a4 {[%emt 0:01:10]} Nxe5 {[%emt 0:02:47]} 17. dxe5 {[%emt 0:00:04]} Nd7 {[%emt 0:00:02]} 18. f4 {[%emt 0:00:02]} f6 {[%emt 0:00:03]} 19. exf6 {[%emt 0:00:04]} Nxf6 {[%emt 0:00:03]} 20. axb5 {[%emt 0:00:12]} axb5 {[%emt 0:00:03]} 21. Nd4 {[%emt 0:00:18]} e5 {[%emt 0:03:29]} 22. Nf5 {[%emt 0:00:04]} Qe6 {[%emt 0:00:01]} 23. fxe5 {[%emt 0:00:04]} Bxe5 {[%emt 0:00:02]} 24. Bxe5 {[%emt 0:00:04]} Qxe5 {[%emt 0:00:01]} 25. Qd4 {[%emt 0:00:02]} Rce8 {[%emt 0:00:33]} 26. Ra1 {[%emt 0:00:57]} Ne4 {[%emt 0:03:50]} 27. Qxe5 {[%emt 0:00:10]} Rxe5 {[%emt 0:00:03]} 28. Nd4 {[%emt 0:00:02]} Rxf1+ {[%emt 0:00:10]} 29. Kxf1 {[%emt 0:00:04]} Nd2+ {[%emt 0:00:11]} 30. Kf2 {[%emt 0:00:12]} Ne4+ {[%emt 0:00:13]} 31. Ke2 {[%emt 0:01:18]} Ng3+ {[%emt 0:00:11]} 32. Kf3 {[%emt 0:00:18]} Nf5 {[%emt 0:00:08]} 33. Nxc6 {[%emt 0:00:08]} Rxe3+ {[%emt 0:00:04]} 34. Kf4 {[%emt 0:00:02]} Re4+ {[%emt 0:00:07]} 35. Kxf5 {[%emt 0:00:24]} g6+ {[%emt 0:00:02]} 36. Kf6 {[%emt 0:00:12]} 1-0

[Event "European Online Club-ch-D 2021"]
[Site "Online"]
[Date "2021.03.27"]
[Round "2.3"]
[White "Korkmaz, Necmettin"]
[Black "Vymazal, Bronislav"]
[Result "0-1"]
[ECO "B02"]
[WhiteElo "2101"]
[BlackElo "2350"]
[Annotator "NA"]
[PlyCount "56"]
[EventDate "2021.03.27"]
[EventType "team-tourn"]
[EventCountry "NET"]
[SourceTitle "playchess.com"]
[Source "ChessBase"]
[SourceQuality "1"]
[TimeControl "900+5"]

1. e4 {[%emt 0:00:00]} c5 {[%emt 0:00:06]} 2. Nc3 {[%emt 0:00:17]} Nc6 {[%emt 0:00:03]} 3. f4 {[%emt 0:00:01]} e6 {[%emt 0:00:05]} 4. Nf3 {[%emt 0:00:02]} a6 {[%emt 0:00:03]} 5. g3 {[%emt 0:00:09]} d5 {[%emt 0:00:52]} 6. Bg2 {[%emt 0:00:27]} Nf6 {[%emt 0:00:07]} 7. e5 {[%emt 0:00:12]} Nd7 {[%emt 0:00:02]} 8. O-O {[%emt 0:00:25]} b5 {[%emt 0:00:12]} 9. Ne2 {[%emt 0:00:03]} Bb7 {[%emt 0:00:16]} 10. d4 {[%emt 0:00:03]} cxd4 {[%emt 0:01:11]} 11. Nexd4 {[%emt 0:00:11]} Bc5 {[%emt 0:00:07]} 12. Kh1 {[%emt 0:00:37]} O-O {[%emt 0:00:05]} 13. Be3 {[%emt 0:00:05]} Qb6 {[%emt 0:00:09]} 14. c3 {[%emt 0:00:04]} a5 {[%emt 0:00:54]} 15. Rc1 {[%emt 0:03:20]} Rfc8 {[%emt 0:02:03]} 16. Bg1 {[%emt 0:00:11]} b4 {[%emt 0:01:09]} 17. c4 {[%emt 0:01:54]} Nxd4 {[%emt 0:03:39]} 18. Bxd4 {[%emt 0:01:22]} dxc4 {[%emt 0:00:30]} 19. Rxc4 {[%emt 0:02:09]} Ba6 {[%emt 0:00:58]} 20. Rxc5 {[%emt 0:01:17]} Nxc5 {[%emt 0:00:05]} 21. Rf2 {[%emt 0:00:09]} Qd8 {[%emt 0:01:09]} 22. Ne1 {[%emt 0:03:07]} Ra7 {[%emt 0:00:35]} 23. Rd2 {[%emt 0:00:07]} Rd7 {[%emt 0:00:07]} 24. h3 {[%emt 0:00:26]} Na4 {[%emt 0:01:08]} 25. Qxa4 {[%emt 0:00:16]} Rxd4 {[%emt 0:00:02]} 26. Rxd4 {[%emt 0:00:03]} Qxd4 {[%emt 0:00:00]} 27. Nf3 {[%emt 0:00:01]} Qb6 {[%emt 0:00:18]} 28. Ng5 {[%emt 0:00:05]} Rc1+ {[%emt 0:00:11]} 0-1

[Event "European Online Club-ch-D 2021"]
[Site "Online"]
[Date "2021.03.27"]
[Round "2.4"]
[White "Sluka, Radek"]
[Black "Erdogmus, Yagiz Kaan"]
[Result "0-1"]
[ECO "B45"]
[WhiteElo "2324"]
[BlackElo "1955"]
[Annotator "NA"]
[PlyCount "66"]
[EventDate "2021.03.27"]
[EventType "team-tourn"]
[EventCountry "NET"]
[SourceTitle "playchess.com"]
[Source "ChessBase"]
[SourceQuality "1"]
[TimeControl "900+5"]

1. e4 {[%emt 0:00:00]} c5 {[%emt 0:00:05]} 2. Nc3 {[%emt 0:00:04]} e6 {[%emt 0:00:02]} 3. Nf3 {[%emt 0:00:07]} Nc6 {[%emt 0:00:04]} 4. d4 {[%emt 0:00:02]} cxd4 {[%emt 0:00:01]} 5. Nxd4 {[%emt 0:00:02]} Nf6 {[%emt 0:00:03]} 6. g3 {[%emt 0:00:11]} Bb4 {[%emt 0:00:33]} 7. Bg2 {[%emt 0:00:03]} O-O {[%emt 0:00:04]} 8. O-O {[%emt 0:00:04]} d6 {[%emt 0:00:05]} 9. Nxc6 {[%emt 0:01:15]} bxc6 {[%emt 0:00:04]} 10. Qd3 {[%emt 0:00:04]} a5 {[%emt 0:01:04]} 11. Rd1 {[%emt 0:00:18]} Ba6 {[%emt 0:00:37]} 12. Qf3 {[%emt 0:00:12]} d5 {[%emt 0:00:53]} 13. a3 {[%emt 0:02:27]} Be7 {[%emt 0:00:43]} 14. Bf4 {[%emt 0:00:35]} Nd7 {[%emt 0:00:42]} 15. Re1 {[%emt 0:01:16]} Bf6 {[%emt 0:01:10]} 16. h4 {[%emt 0:00:27]} Qb6 {[%emt 0:00:43]} 17. e5 {[%emt 0:00:46]} Be7 {[%emt 0:00:10]} 18. b3 {[%emt 0:00:14]} c5 {[%emt 0:00:21]} 19. h5 {[%emt 0:00:23]} c4 {[%emt 0:00:45]} 20. Qg4 {[%emt 0:02:39]} Bc5 {[%emt 0:01:27]} 21. Bh6 {[%emt 0:00:48]} Bxf2+ {[%emt 0:00:34]} 22. Kh2 {[%emt 0:00:18]} g6 {[%emt 0:00:05]} 23. Bxf8 {[%emt 0:02:03]} Bxe1 {[%emt 0:01:43]} 24. Rxe1 {[%emt 0:00:04]} Nxf8 {[%emt 0:00:19]} 25. bxc4 {[%emt 0:00:55]} Bxc4 {[%emt 0:00:06]} 26. Qf4 {[%emt 0:00:08]} gxh5 {[%emt 0:00:43]} 27. Be4 {[%emt 0:00:32]} dxe4 {[%emt 0:02:15]} 28. Nxe4 {[%emt 0:00:05]} Ng6 {[%emt 0:00:05]} 29. Qh6 {[%emt 0:00:12]} Kh8 {[%emt 0:00:17]} 30. Rg1 {[%emt 0:00:23]} Bd5 {[%emt 0:01:08]} 31. Rf1 {[%emt 0:00:48]} Qc7 {[%emt 0:00:13]} 32. Ng5 {[%emt 0:00:07]} Qxc2+ {[%emt 0:00:02]} 33. Kh3 {[%emt 0:00:05]} Qg2# {[%emt 0:00:03]} 0-1

[Event "European Online Club-ch-D 2021"]
[Site "Online"]
[Date "2021.03.27"]
[Round "2.5"]
[White "Tokhirjonova, Gulrukhbegim"]
[Black "Gadimbayli, Abdulla"]
[Result "0-1"]
[ECO "C40"]
[WhiteElo "2362"]
[BlackElo "2470"]
[Annotator "ChessBase"]
[PlyCount "60"]
[EventDate "2021.03.27"]
[EventType "team-tourn"]
[EventCountry "NET"]
[SourceTitle "playchess.com"]
[Source "ChessBase"]
[SourceQuality "1"]
[TimeControl "900+5"]

1. e4 {[%emt 0:00:00]} e5 {[%emt 0:00:04]} 2. Nf3 {[%emt 0:00:03]} d5 {[%emt 0:00:02]} 3. Nxe5 {[%emt 0:00:16]} Bd6 {[%emt 0:00:02]} 4. d4 {[%emt 0:00:02]} dxe4 {[%emt 0:00:01]} 5. Nc3 {[%emt 0:00:23]} Bxe5 {[%emt 0:00:02]} 6. dxe5 {[%emt 0:00:02]} Qxd1+ {[%emt 0:00:02]} 7. Kxd1 {[%emt 0:00:05]} Nc6 {[%emt 0:00:11]} 8. Nxe4 {[%emt 0:00:16]} Bf5 {[%emt 0:00:27]} 9. Ng3 {[%emt 0:00:13]} O-O-O+ {[%emt 0:00:21]} 10. Bd2 {[%emt 0:00:12]} Bg6 {[%emt 0:00:03]} 11. f4 {[%emt 0:00:10]} h5 {[%emt 0:01:56]} 12. h4 {[%emt 0:00:10]} Nh6 {[%emt 0:00:02]} 13. c3 {[%emt 0:02:52]} Rd7 {[%emt 0:04:46]} 14. Ke1 {[%emt 0:00:42]} Rhd8 {[%emt 0:02:00]} 15. Be3 {[%emt 0:00:06]} Ng4 {[%emt 0:01:05]} 16. Bg1 {[%emt 0:00:37]} Rd2 {[%emt 0:01:46]} 17. Be2 {[%emt 0:00:06]} Rxb2 {[%emt 0:00:47]} 18. f5 {[%emt 0:00:06]} Bh7 {[%emt 0:00:02]} 19. Nxh5 {[%emt 0:00:18]} Ngxe5 {[%emt 0:00:10]} 20. g4 {[%emt 0:00:12]} Rdd2 {[%emt 0:01:02]} 21. Nf4 {[%emt 0:00:04]} Rxe2+ {[%emt 0:00:10]} 22. Nxe2 {[%emt 0:00:12]} Nxg4 {[%emt 0:00:02]} 23. Nd4 {[%emt 0:01:46]} Nce5 {[%emt 0:01:19]} 24. Rh3 {[%emt 0:00:12]} c5 {[%emt 0:00:05]} 25. Rg3 {[%emt 0:00:32]} Nf6 {[%emt 0:00:28]} 26. Nb3 {[%emt 0:00:09]} Ne4 {[%emt 0:00:03]} 27. Rxg7 {[%emt 0:00:36]} Bxf5 {[%emt 0:00:07]} 28. Be3 {[%emt 0:01:24]} Nf3+ {[%emt 0:00:05]} 29. Kd1 {[%emt 0:00:31]} Nxc3+ {[%emt 0:00:01]} 30. Kc1 {[%emt 0:00:04]} Rc2# {[%emt 0:00:02]} 0-1